[Event "106th British-ch Major 2019"]
[Site "Torquay"]
[Date "2019.07.30"]
[Round "4.11"]
[White "Nayak, Raghav"]
[Black "Cleary, Mark"]
[Result "0-1"]
[ECO "C95"]
[WhiteElo "1906"]
[BlackElo "2023"]
[Annotator "NA"]
[PlyCount "132"]
[EventDate "2019.07.27"]
[EventType "swiss"]
[EventCountry "GBR"]
[SourceTitle "playchess.com"]
[Source "ChessBase"]
[SourceQuality "1"]
[TimeControl "40/5400+30:1800+30"]

1. e4 {[%emt 0:00:11]} e5 {[%emt 0:00:00]} 2. Nf3 {[%emt 0:00:08]} Nc6 {[%emt 0:00:00]} 3. Bb5 {[%emt 0:00:06]} a6 {[%emt 0:00:08]} 4. Ba4 {[%emt 0:00:07]} Nf6 {[%emt 0:00:17]} 5. O-O {[%emt 0:00:11]} Be7 {[%emt 0:00:24]} 6. Re1 {[%emt 0:00:18]} b5 {[%emt 0:00:14]} 7. Bb3 {[%emt 0:00:10]} d6 {[%emt 0:00:30]} 8. c3 {[%emt 0:00:20]} O-O {[%emt 0:00:30]} 9. h3 {[%emt 0:00:06]} Nb8 {[%emt 0:00:21]} 10. d4 {[%emt 0:00:28]} Nbd7 {[%emt 0:00:23]} 11. Nbd2 {[%emt 0:00:47]} Bb7 {[%emt 0:00:19]} 12. Bc2 {[%emt 0:00:21]} Re8 {[%emt 0:00:21]} 13. Nf1 {[%emt 0:00:32]} Bf8 {[%emt 0:00:15]} 14. Ng3 {[%emt 0:00:09]} g6 {[%emt 0:00:13]} 15. Bg5 {[%emt 0:02:41]} h6 {[%emt 0:02:41]} 16. Bd2 {[%emt 0:05:33]} Bg7 {[%emt 0:01:06]} 17. a4 {[%emt 0:01:20]} c5 {[%emt 0:09:28]} 18. d5 {[%emt 0:00:56]} c4 {[%emt 0:01:50]} 19. Be3 {[%emt 0:01:47]} Qc7 {[%emt 0:14:53]} 20. Nh2 {[%emt 0:01:40]} h5 {[%emt 0:07:50]} 21. Rf1 {[%emt 0:02:15]} Nc5 {[%emt 0:05:46]} 22. f3 {[%emt 0:03:09]} Nfd7 {[%emt 0:06:03]} 23. Qd2 {[%emt 0:02:17]} Nb6 {[%emt 0:01:57]} 24. Bh6 {[%emt 0:04:07]} f6 {[%emt 0:00:56]} 25. Bxg7 {[%emt 0:00:32]} Qxg7 {[%emt 0:00:33]} 26. a5 {[%emt 0:02:36]} Nbd7 {[%emt 0:05:11]} 27. Rae1 {[%emt 0:02:21]} Rf8 {[%emt 0:06:13]} 28. h4 {[%emt 0:22:31]} Rf7 {[%emt 0:05:40]} 29. Rf2 {[%emt 0:06:11]} Kh7 {[%emt 0:02:38]} 30. Nhf1 {[%emt 0:00:58]} Qh6 {[%emt 0:02:06]} 31. Ne3 {[%emt 0:01:11]} Qf4 {[%emt 0:04:58]} 32. Ne2 {[%emt 0:01:27]} Qxh4 {[%emt 0:00:09]} 33. g3 {[%emt 0:00:10]} Qg5 {[%emt 0:00:47]} 34. Rh2 {[%emt 0:00:56]} Rh8 {[%emt 0:00:49]} 35. Kf2 {[%emt 0:02:00]} Kg8 {[%emt 0:02:19]} 36. Rg1 {[%emt 0:01:59]} Qh6 {[%emt 0:06:26]} 37. Rhg2 {[%emt 0:02:19]} Bc8 {[%emt 0:03:18]} 38. Ke1 {[%emt 0:02:40]} Nf8 {[%emt 0:01:14]} 39. f4 {[%emt 0:03:55]} Bg4 {[%emt 0:05:22]} 40. Nxg4 {[%emt 0:09:26]} hxg4 {[%emt 0:00:11]} 41. Nc1 {[%emt 0:34:58]} Nfd7 {[%emt 0:31:36]} 42. Rf2 {[%emt 0:05:23]} f5 {[%emt 0:03:56]} 43. exf5 {[%emt 0:03:21]} gxf5 {[%emt 0:00:27]} 44. b4 {[%emt 0:01:00]} cxb3 {[%emt 0:00:30]} 45. Nxb3 {[%emt 0:00:30]} Nxb3 {[%emt 0:00:00]} 46. Bxb3 {[%emt 0:00:00]} Nc5 {[%emt 0:00:00]} 47. Bc2 {[%emt 0:00:00]} e4 {[%emt 0:00:00]} 48. Rgg2 {[%emt 0:00:00]} Qf6 {[%emt 0:00:00]} 49. Qe3 {[%emt 0:00:00]} Rfh7 {[%emt 0:00:00]} 50. Kd2 {[%emt 0:00:00]} Rh1 {[%emt 0:00:00]} 51. Re2 {[%emt 0:00:00]} R8h3 {[%emt 0:00:00]} 52. Ref2 {[%emt 0:00:00]} Qh8 {[%emt 0:00:00]} 53. Re2 {[%emt 0:00:00]} Ra1 {[%emt 0:00:00]} 54. Qd4 {[%emt 0:00:00]} Qxd4+ {[%emt 0:00:00]} 55. cxd4 {[%emt 0:00:00]} Nd7 {[%emt 0:00:00]} 56. Rh2 {[%emt 0:00:00]} Rxh2 {[%emt 0:00:00]} 57. Rxh2 {[%emt 0:00:00]} Nf6 {[%emt 0:00:00]} 58. Bb3 {[%emt 0:00:00]} Rg1 {[%emt 0:00:00]} 59. Kc3 {[%emt 0:00:00]} Rxg3+ {[%emt 0:00:00]} 60. Kb4 {[%emt 0:00:00]} Rd3 {[%emt 0:00:00]} 61. Rc2 {[%emt 0:00:00]} e3 {[%emt 0:00:00]} 62. Re2 {[%emt 0:00:00]} g3 {[%emt 0:00:00]} 63. Rg2 {[%emt 0:00:00]} Ne4 {[%emt 0:00:00]} 64. Bc2 {[%emt 0:00:00]} Rd2 {[%emt 0:00:00]} 65. Bxe4 {[%emt 0:00:00]} Rxg2 {[%emt 0:00:00]} 66. Bxg2 {[%emt 0:00:00]} e2 {[%emt 0:00:00]} 0-1

[Event "106th British-ch Major 2019"]
[Site "Torquay"]
[Date "2019.07.30"]
[Round "4.12"]
[White "Menadue, Jeremy F S"]
[Black "Foster, Timothy"]
[Result "1/2-1/2"]
[ECO "E70"]
[WhiteElo "2016"]
[BlackElo "1852"]
[Annotator "NA"]
[PlyCount "44"]
[EventDate "2019.07.27"]
[EventType "swiss"]
[EventCountry "GBR"]
[SourceTitle "playchess.com"]
[Source "ChessBase"]
[SourceQuality "1"]
[TimeControl "40/5400+30:1800+30"]

1. d4 {[%emt 0:00:00]} Nf6 {[%emt 0:00:00]} 2. c4 {[%emt 0:00:00]} g6 {[%emt 0:00:00]} 3. Nc3 {[%emt 0:00:01]} Bg7 {[%emt 0:00:00]} 4. e4 {[%emt 0:00:05]} d6 {[%emt 0:00:00]} 5. Nge2 {[%emt 0:01:20]} O-O {[%emt 0:00:00]} 6. Ng3 {[%emt 0:00:06]} e5 {[%emt 0:00:10]} 7. d5 {[%emt 0:00:05]} a5 {[%emt 0:00:04]} 8. Be2 {[%emt 0:00:24]} Na6 {[%emt 0:00:13]} 9. h4 {[%emt 0:01:09]} h5 {[%emt 0:00:04]} 10. Bg5 {[%emt 0:00:52]} Qe8 {[%emt 0:01:47]} 11. Qd2 {[%emt 0:02:08]} Nc5 {[%emt 0:00:11]} 12. f3 {[%emt 0:05:00]} Bd7 {[%emt 0:06:22]} 13. O-O-O {[%emt 0:03:37]} a4 {[%emt 0:01:29]} 14. Kb1 {[%emt 0:00:06]} Nh7 {[%emt 0:11:16]} 15. Be3 {[%emt 0:14:07]} b6 {[%emt 0:00:11]} 16. Rdg1 {[%emt 0:01:57]} Qc8 {[%emt 0:17:12]} 17. Bd1 {[%emt 0:00:53]} Qa6 {[%emt 0:03:44]} 18. Be2 {[%emt 0:02:59]} Qa5 {[%emt 0:09:33]} 19. Nb5 {[%emt 0:05:28]} Qxd2 {[%emt 0:08:06]} 20. Bxd2 {[%emt 0:00:07]} Rfc8 {[%emt 0:00:19]} 21. Rd1 {[%emt 0:11:44]} Bf8 {[%emt 0:03:57]} 22. Be3 {[%emt 0:09:24]} Be7 {[%emt 0:04:27]} 1/2-1/2

[Event "106th British-ch Major 2019"]
[Site "Torquay"]
[Date "2019.07.30"]
[Round "4.13"]
[White "Metcalfe, Charlie P"]
[Black "Akeya-Price, Robert"]
[Result "1-0"]
[ECO "D15"]
[WhiteElo "1739"]
[BlackElo "1974"]
[Annotator "NA"]
[PlyCount "71"]
[EventDate "2019.07.27"]
[EventType "swiss"]
[EventCountry "GBR"]
[SourceTitle "playchess.com"]
[Source "ChessBase"]
[SourceQuality "1"]
[TimeControl "40/5400+30:1800+30"]

1. d4 {[%emt 0:00:00]} Nf6 {[%emt 0:00:00]} 2. Nf3 {[%emt 0:00:00]} d5 {[%emt 0:00:00]} 3. c4 {[%emt 0:00:00]} c6 {[%emt 0:00:10]} 4. Nc3 {[%emt 0:07:30]} Bg4 {[%emt 0:00:37]} 5. Qb3 {[%emt 0:03:03]} Qb6 {[%emt 0:05:55]} 6. c5 {[%emt 0:20:05]} Qxb3 {[%emt 0:00:42]} 7. axb3 {[%emt 0:00:01]} Nbd7 {[%emt 0:00:29]} 8. Bf4 {[%emt 0:00:59]} Nh5 {[%emt 0:05:05]} 9. Bc7 {[%emt 0:04:01]} Bxf3 {[%emt 0:00:12]} 10. gxf3 {[%emt 0:00:43]} e5 {[%emt 0:00:20]} 11. e3 {[%emt 0:08:40]} g6 {[%emt 0:02:50]} 12. Kd2 {[%emt 0:16:30]} exd4 {[%emt 0:02:32]} 13. exd4 {[%emt 0:00:04]} Bg7 {[%emt 0:00:22]} 14. Re1+ {[%emt 0:01:01]} Kf8 {[%emt 0:00:49]} 15. Bd6+ {[%emt 0:00:02]} Kg8 {[%emt 0:00:15]} 16. Re7 {[%emt 0:02:25]} Nf8 {[%emt 0:00:32]} 17. Ne2 {[%emt 0:11:57]} Ne6 {[%emt 0:01:39]} 18. Kd3 {[%emt 0:00:33]} Nd8 {[%emt 0:05:48]} 19. Re8+ {[%emt 0:00:32]} Bf8 {[%emt 0:00:12]} 20. Rxf8+ {[%emt 0:02:19]} Kg7 {[%emt 0:00:02]} 21. Rxh8 {[%emt 0:00:01]} Kxh8 {[%emt 0:00:02]} 22. Ng3 {[%emt 0:02:00]} Ng7 {[%emt 0:00:21]} 23. Bh3 {[%emt 0:00:33]} f5 {[%emt 0:00:30]} 24. Ra1 {[%emt 0:01:24]} a6 {[%emt 0:00:33]} 25. Re1 {[%emt 0:01:03]} Nge6 {[%emt 0:00:43]} 26. Ne2 {[%emt 0:00:42]} Kg7 {[%emt 0:02:04]} 27. Nf4 {[%emt 0:00:38]} Kf7 {[%emt 0:00:12]} 28. Kc3 {[%emt 0:01:58]} Kf6 {[%emt 0:01:01]} 29. Nd3 {[%emt 0:01:20]} Rc8 {[%emt 0:01:12]} 30. Ne5 {[%emt 0:00:36]} Kg7 {[%emt 0:01:16]} 31. Nd7 {[%emt 0:00:16]} Ra8 {[%emt 0:00:51]} 32. Nb6 {[%emt 0:00:19]} Ra7 {[%emt 0:00:50]} 33. Bb8 {[%emt 0:00:16]} Kf7 {[%emt 0:01:00]} 34. Bxa7 {[%emt 0:00:04]} Nf4 {[%emt 0:00:08]} 35. Bf1 {[%emt 0:00:08]} Nde6 {[%emt 0:00:03]} 36. Bb8 {[%emt 0:00:43]} 1-0

[Event "106th British-ch Major 2019"]
[Site "Torquay"]
[Date "2019.07.30"]
[Round "4.14"]
[White "Rushbrooke, Remy"]
[Black "Robertson, Jim"]
[Result "1-0"]
[ECO "A10"]
[WhiteElo "1963"]
[BlackElo "1580"]
[Annotator "NA"]
[PlyCount "39"]
[EventDate "2019.07.27"]
[EventType "swiss"]
[EventCountry "GBR"]
[SourceTitle "playchess.com"]
[Source "ChessBase"]
[SourceQuality "1"]
[TimeControl "40/5400+30:1800+30"]

1. Nf3 {[%emt 0:00:36]} d5 {[%emt 0:01:50]} 2. g3 {[%emt 0:00:06]} e6 {[%emt 0:00:25]} 3. Bg2 {[%emt 0:00:06]} f5 {[%emt 0:00:34]} 4. O-O {[%emt 0:00:11]} Nf6 {[%emt 0:00:34]} 5. c4 {[%emt 0:00:07]} c6 {[%emt 0:00:11]} 6. Nc3 {[%emt 0:00:07]} Bd6 {[%emt 0:04:14]} 7. d3 {[%emt 0:00:08]} Bc7 {[%emt 0:05:00]} 8. e4 {[%emt 0:12:53]} d4 {[%emt 0:02:57]} 9. Nb1 {[%emt 0:04:14]} e5 {[%emt 0:01:32]} 10. exf5 {[%emt 0:00:24]} Bxf5 {[%emt 0:00:49]} 11. Re1 {[%emt 0:00:21]} Nbd7 {[%emt 0:05:25]} 12. Nxd4 {[%emt 0:00:56]} g6 {[%emt 0:08:47]} 13. Nxf5 {[%emt 0:00:38]} gxf5 {[%emt 0:00:02]} 14. Bh3 {[%emt 0:00:33]} Ng4 {[%emt 0:12:36]} 15. Bxg4 {[%emt 0:00:20]} fxg4 {[%emt 0:00:19]} 16. Qxg4 {[%emt 0:00:05]} Nf6 {[%emt 0:00:30]} 17. Qe6+ {[%emt 0:00:11]} Qe7 {[%emt 0:01:45]} 18. Qxe7+ {[%emt 0:00:06]} Kxe7 {[%emt 0:00:05]} 19. d4 {[%emt 0:00:20]} Rad8 {[%emt 0:06:26]} 20. dxe5 {[%emt 0:00:30]} 1-0

[Event "106th British-ch Major 2019"]
[Site "Torquay"]
[Date "2019.07.30"]
[Round "4.15"]
[White "Payne, Matthew J"]
[Black "Cocks, Elliot"]
[Result "1-0"]
[ECO "C45"]
[WhiteElo "2168"]
[BlackElo "1907"]
[Annotator "NA"]
[PlyCount "51"]
[EventDate "2019.07.27"]
[EventType "swiss"]
[EventCountry "GBR"]
[SourceTitle "playchess.com"]
[Source "ChessBase"]
[SourceQuality "1"]
[TimeControl "40/5400+30:1800+30"]

1. e4 {[%emt 0:00:00]} e5 {[%emt 0:03:10]} 2. Nf3 {[%emt 0:00:00]} Nc6 {[%emt 0:00:05]} 3. d4 {[%emt 0:00:00]} exd4 {[%emt 0:00:09]} 4. Nxd4 {[%emt 0:00:00]} Nf6 {[%emt 0:00:28]} 5. Nxc6 {[%emt 0:00:07]} bxc6 {[%emt 0:00:07]} 6. e5 {[%emt 0:00:10]} Qe7 {[%emt 0:00:21]} 7. Qe2 {[%emt 0:00:08]} Nd5 {[%emt 0:00:32]} 8. c4 {[%emt 0:00:08]} Ba6 {[%emt 0:00:26]} 9. Nd2 {[%emt 0:00:24]} O-O-O {[%emt 0:08:06]} 10. Qe4 {[%emt 0:07:14]} Nb6 {[%emt 0:09:02]} 11. b3 {[%emt 0:01:55]} Bb7 {[%emt 0:04:00]} 12. Bb2 {[%emt 0:04:41]} Qe6 {[%emt 0:02:24]} 13. O-O-O {[%emt 0:06:56]} g6 {[%emt 0:05:39]} 14. Qc2 {[%emt 0:10:59]} Bg7 {[%emt 0:03:20]} 15. f4 {[%emt 0:05:42]} f6 {[%emt 0:06:11]} 16. Bd3 {[%emt 0:15:48]} fxe5 {[%emt 0:02:32]} 17. Rhe1 {[%emt 0:00:09]} Rhf8 {[%emt 0:08:47]} 18. Bxe5 {[%emt 0:03:49]} Bxe5 {[%emt 0:01:22]} 19. Rxe5 {[%emt 0:00:09]} Qf6 {[%emt 0:02:16]} 20. g3 {[%emt 0:00:11]} d6 {[%emt 0:03:04]} 21. Ne4 {[%emt 0:03:08]} Qg7 {[%emt 0:02:24]} 22. Re6 {[%emt 0:00:56]} Kb8 {[%emt 0:01:02]} 23. Qc3 {[%emt 0:06:36]} Qd7 {[%emt 0:04:00]} 24. Rf6 {[%emt 0:01:02]} Rfe8 {[%emt 0:01:27]} 25. Bc2 {[%emt 0:03:17]} Qg7 {[%emt 0:01:38]} 26. Rfxd6 {[%emt 0:00:22]} 1-0

[Event "106th British-ch Major 2019"]
[Site "Torquay"]
[Date "2019.07.30"]
[Round "4.16"]
[White "Miller, Dominic"]
[Black "Ruane, Brendan J"]
[Result "1-0"]
[ECO "A10"]
[WhiteElo "2140"]
[BlackElo "1904"]
[Annotator "NA"]
[PlyCount "45"]
[EventDate "2019.07.27"]
[EventType "swiss"]
[EventCountry "GBR"]
[SourceTitle "playchess.com"]
[Source "ChessBase"]
[SourceQuality "1"]
[TimeControl "40/5400+30:1800+30"]

1. c4 {[%emt 0:10:05]} b6 {[%emt 0:00:10]} 2. Nc3 {[%emt 0:00:48]} e6 {[%emt 0:00:33]} 3. e4 {[%emt 0:02:11]} Bb7 {[%emt 0:00:57]} 4. Nf3 {[%emt 0:03:08]} g6 {[%emt 0:03:38]} 5. d4 {[%emt 0:01:49]} Bg7 {[%emt 0:00:09]} 6. Bd3 {[%emt 0:01:53]} d6 {[%emt 0:00:36]} 7. O-O {[%emt 0:01:29]} Nd7 {[%emt 0:00:15]} 8. Be3 {[%emt 0:01:23]} Ne7 {[%emt 0:00:56]} 9. Rc1 {[%emt 0:01:56]} a6 {[%emt 0:02:36]} 10. b4 {[%emt 0:04:35]} h6 {[%emt 0:08:32]} 11. d5 {[%emt 0:07:27]} c5 {[%emt 0:05:20]} 12. bxc5 {[%emt 0:07:12]} Nxc5 {[%emt 0:03:30]} 13. Na4 {[%emt 0:07:55]} Bc8 {[%emt 0:17:36]} 14. Rb1 {[%emt 0:12:09]} Nxa4 {[%emt 0:00:52]} 15. Qxa4+ {[%emt 0:00:05]} Bd7 {[%emt 0:02:43]} 16. Qb4 {[%emt 0:01:42]} Nc8 {[%emt 0:04:29]} 17. Bxb6 {[%emt 0:01:31]} Nxb6 {[%emt 0:00:05]} 18. Qxb6 {[%emt 0:00:05]} Qe7 {[%emt 0:00:10]} 19. e5 {[%emt 0:08:12]} dxe5 {[%emt 0:01:19]} 20. d6 {[%emt 0:00:04]} Qd8 {[%emt 0:01:21]} 21. c5 {[%emt 0:00:05]} Qc8 {[%emt 0:01:23]} 22. Be4 {[%emt 0:01:02]} Bb5 {[%emt 0:01:53]} 23. Rxb5 {[%emt 0:01:10]} 1-0

[Event "106th British-ch Major 2019"]
[Site "Torquay"]
[Date "2019.07.30"]
[Round "4.17"]
[White "Shaw, Peter"]
[Black "Rathbone-Jones, Ifan"]
[Result "1-0"]
[ECO "D06"]
[WhiteElo "2068"]
[BlackElo "1855"]
[Annotator "NA"]
[PlyCount "59"]
[EventDate "2019.07.27"]
[EventType "swiss"]
[EventCountry "GBR"]
[SourceTitle "playchess.com"]
[Source "ChessBase"]
[SourceQuality "1"]
[TimeControl "40/5400+30:1800+30"]

1. d4 {[%emt 0:00:00]} d5 {[%emt 0:00:00]} 2. c4 {[%emt 0:00:00]} Bf5 {[%emt 0:00:00]} 3. Nc3 {[%emt 0:02:14]} e6 {[%emt 0:00:00]} 4. Bf4 {[%emt 0:06:12]} c6 {[%emt 0:05:19]} 5. Qb3 {[%emt 0:02:16]} Qd7 {[%emt 0:03:12]} 6. cxd5 {[%emt 0:08:51]} cxd5 {[%emt 0:02:30]} 7. Bxb8 {[%emt 0:05:19]} Rxb8 {[%emt 0:00:16]} 8. e4 {[%emt 0:00:23]} Bxe4 {[%emt 0:03:39]} 9. Bb5 {[%emt 0:04:39]} Bxg2 {[%emt 0:00:47]} 10. Bxd7+ {[%emt 0:00:10]} Kxd7 {[%emt 0:00:10]} 11. Qa4+ {[%emt 0:02:07]} Ke7 {[%emt 0:01:58]} 12. Qxa7 {[%emt 0:00:36]} Rd8 {[%emt 0:00:06]} 13. Qxb7+ {[%emt 0:01:34]} Rd7 {[%emt 0:04:14]} 14. Qb4+ {[%emt 0:01:17]} Ke8 {[%emt 0:00:02]} 15. Qb8+ {[%emt 0:00:21]} Ke7 {[%emt 0:00:08]} 16. f3 {[%emt 0:05:45]} Bxh1 {[%emt 0:00:43]} 17. Kf2 {[%emt 0:00:10]} g5 {[%emt 0:00:25]} 18. Nge2 {[%emt 0:01:59]} Bxf3 {[%emt 0:00:10]} 19. Kxf3 {[%emt 0:00:06]} g4+ {[%emt 0:00:05]} 20. Kg2 {[%emt 0:01:31]} h5 {[%emt 0:00:47]} 21. Na4 {[%emt 0:06:28]} Rd8 {[%emt 0:01:01]} 22. Qc7+ {[%emt 0:03:05]} Rd7 {[%emt 0:00:15]} 23. Qc5+ {[%emt 0:00:09]} Ke8 {[%emt 0:00:05]} 24. Qc8+ {[%emt 0:00:11]} Rd8 {[%emt 0:00:08]} 25. Qc6+ {[%emt 0:00:08]} Ke7 {[%emt 0:00:02]} 26. Nb6 {[%emt 0:03:42]} Nh6 {[%emt 0:00:54]} 27. Rf1 {[%emt 0:03:05]} Rg8 {[%emt 0:01:33]} 28. Nc8+ {[%emt 0:01:09]} Rxc8 {[%emt 0:00:18]} 29. Qxc8 {[%emt 0:00:05]} Nf5 {[%emt 0:00:06]} 30. Rxf5 {[%emt 0:01:22]} 1-0

[Event "106th British-ch Major 2019"]
[Site "Torquay"]
[Date "2019.07.30"]
[Round "4.18"]
[White "Hosdurga, Chirag"]
[Black "Rice, Chris B"]
[Result "1-0"]
[ECO "E76"]
[WhiteElo "1926"]
[BlackElo "2040"]
[Annotator "NA"]
[PlyCount "69"]
[EventDate "2019.07.27"]
[EventType "swiss"]
[EventCountry "GBR"]
[SourceTitle "playchess.com"]
[Source "ChessBase"]
[SourceQuality "1"]
[TimeControl "40/5400+30:1800+30"]

1. d4 {[%emt 0:00:00]} Nf6 {[%emt 0:01:56]} 2. c4 {[%emt 0:00:00]} g6 {[%emt 0:00:19]} 3. Nc3 {[%emt 0:00:00]} Bg7 {[%emt 0:00:07]} 4. e4 {[%emt 0:00:00]} d6 {[%emt 0:00:17]} 5. f4 {[%emt 0:00:00]} c5 {[%emt 0:00:52]} 6. d5 {[%emt 0:00:52]} O-O {[%emt 0:00:46]} 7. Nf3 {[%emt 0:00:03]} e6 {[%emt 0:00:18]} 8. dxe6 {[%emt 0:00:34]} Bxe6 {[%emt 0:09:24]} 9. Bd3 {[%emt 0:00:13]} Nc6 {[%emt 0:07:04]} 10. O-O {[%emt 0:01:03]} Bg4 {[%emt 0:05:20]} 11. h3 {[%emt 0:01:03]} Bxf3 {[%emt 0:00:15]} 12. Qxf3 {[%emt 0:00:13]} a6 {[%emt 0:11:51]} 13. Be3 {[%emt 0:00:47]} Nd7 {[%emt 0:02:00]} 14. Qf2 {[%emt 0:14:13]} Qa5 {[%emt 0:08:21]} 15. Nd5 {[%emt 0:15:10]} b5 {[%emt 0:02:51]} 16. Rac1 {[%emt 0:04:59]} Rab8 {[%emt 0:05:43]} 17. b3 {[%emt 0:01:32]} Rfe8 {[%emt 0:01:30]} 18. e5 {[%emt 0:11:16]} dxe5 {[%emt 0:02:54]} 19. f5 {[%emt 0:00:16]} Nd8 {[%emt 0:09:23]} 20. Be4 {[%emt 0:10:16]} Rc8 {[%emt 0:10:44]} 21. cxb5 {[%emt 0:03:28]} axb5 {[%emt 0:02:49]} 22. b4 {[%emt 0:02:35]} Qa4 {[%emt 0:02:12]} 23. Qh4 {[%emt 0:02:06]} Rb8 {[%emt 0:07:17]} 24. Qg4 {[%emt 0:03:05]} Nb6 {[%emt 0:01:56]} 25. Nxb6 {[%emt 0:04:02]} Rxb6 {[%emt 0:00:10]} 26. bxc5 {[%emt 0:00:08]} Rc6 {[%emt 0:04:37]} 27. Bxc6 {[%emt 0:00:46]} Qxg4 {[%emt 0:00:06]} 28. hxg4 {[%emt 0:00:05]} Nxc6 {[%emt 0:00:03]} 29. f6 {[%emt 0:01:07]} Bf8 {[%emt 0:00:13]} 30. Rfd1 {[%emt 0:01:34]} Rc8 {[%emt 0:01:21]} 31. Rd7 {[%emt 0:01:36]} h6 {[%emt 0:01:39]} 32. Kf2 {[%emt 0:01:08]} Nd4 {[%emt 0:00:48]} 33. Bxd4 {[%emt 0:00:49]} exd4 {[%emt 0:00:05]} 34. c6 {[%emt 0:00:16]} Ba3 {[%emt 0:00:47]} 35. c7 {[%emt 0:01:19]} 1-0

[Event "106th British-ch Major 2019"]
[Site "Torquay"]
[Date "2019.07.30"]
[Round "4.19"]
[White "Cusick, Peter"]
[Black "Tombolis, Christopher"]
[Result "1-0"]
[ECO "D58"]
[WhiteElo "1971"]
[BlackElo "1883"]
[Annotator "NA"]
[PlyCount "71"]
[EventDate "2019.07.27"]
[EventType "swiss"]
[EventCountry "GBR"]
[SourceTitle "playchess.com"]
[Source "ChessBase"]
[SourceQuality "1"]
[TimeControl "40/5400+30:1800+30"]

1. d4 {[%emt 0:02:26]} d5 {[%emt 0:00:00]} 2. Nf3 {[%emt 0:00:02]} Nf6 {[%emt 0:00:00]} 3. c4 {[%emt 0:00:06]} e6 {[%emt 0:00:00]} 4. cxd5 {[%emt 0:00:06]} exd5 {[%emt 0:00:00]} 5. Nc3 {[%emt 0:00:10]} Be7 {[%emt 0:00:01]} 6. Bg5 {[%emt 0:00:05]} O-O {[%emt 0:00:06]} 7. e3 {[%emt 0:01:41]} h6 {[%emt 0:00:06]} 8. Bh4 {[%emt 0:01:23]} b6 {[%emt 0:02:31]} 9. Bd3 {[%emt 0:01:21]} Bb7 {[%emt 0:00:17]} 10. O-O {[%emt 0:00:43]} c5 {[%emt 0:02:57]} 11. Rc1 {[%emt 0:00:42]} Ne4 {[%emt 0:04:53]} 12. Bxe7 {[%emt 0:02:41]} Qxe7 {[%emt 0:00:26]} 13. Bb1 {[%emt 0:03:55]} Nd7 {[%emt 0:13:37]} 14. Qd3 {[%emt 0:11:51]} c4 {[%emt 0:02:35]} 15. Qc2 {[%emt 0:01:31]} f5 {[%emt 0:00:09]} 16. Rce1 {[%emt 0:06:03]} Rae8 {[%emt 0:04:04]} 17. Nd2 {[%emt 0:10:20]} Qh4 {[%emt 0:15:52]} 18. Nf3 {[%emt 0:07:28]} Qh5 {[%emt 0:00:09]} 19. Qa4 {[%emt 0:00:57]} Rf7 {[%emt 0:33:24]} 20. Bxe4 {[%emt 0:05:00]} fxe4 {[%emt 0:01:54]} 21. Ne5 {[%emt 0:00:39]} Rxe5 {[%emt 0:00:29]} 22. dxe5 {[%emt 0:00:06]} Nxe5 {[%emt 0:01:57]} 23. Qe8+ {[%emt 0:06:09]} Kh7 {[%emt 0:00:06]} 24. Qb8 {[%emt 0:12:51]} Rf5 {[%emt 0:01:10]} 25. Ne2 {[%emt 0:02:02]} Nf3+ {[%emt 0:11:35]} 26. gxf3 {[%emt 0:04:34]} exf3 {[%emt 0:00:07]} 27. Nf4 {[%emt 0:00:53]} Qg5+ {[%emt 0:00:49]} 28. Kh1 {[%emt 0:00:10]} Rxf4 {[%emt 0:00:03]} 29. Rg1 {[%emt 0:00:13]} Rg4 {[%emt 0:00:35]} 30. Rxg4 {[%emt 0:00:39]} Qxg4 {[%emt 0:00:01]} 31. Rg1 {[%emt 0:01:00]} Qc8 {[%emt 0:02:32]} 32. Qxa7 {[%emt 0:01:48]} Qc6 {[%emt 0:00:45]} 33. Qb8 {[%emt 0:01:18]} Bc8 {[%emt 0:00:24]} 34. Qe5 {[%emt 0:01:12]} Qb7 {[%emt 0:01:59]} 35. Qh5 {[%emt 0:03:57]} Qe7 {[%emt 0:01:09]} 36. Qxd5 {[%emt 0:03:55]} 1-0

[Event "106th British-ch Major 2019"]
[Site "Torquay"]
[Date "2019.07.30"]
[Round "4.20"]
[White "Warren, Alex M"]
[Black "Sanitt, Ethan"]
[Result "1-0"]
[ECO "A45"]
[WhiteElo "1967"]
[BlackElo "1752"]
[Annotator "NA"]
[PlyCount "55"]
[EventDate "2019.07.27"]
[EventType "swiss"]
[EventCountry "GBR"]
[SourceTitle "playchess.com"]
[Source "ChessBase"]
[SourceQuality "1"]
[TimeControl "40/5400+30:1800+30"]

1. d4 {[%emt 0:00:00]} Nf6 {[%emt 0:00:00]} 2. Bf4 {[%emt 0:00:00]} c5 {[%emt 0:00:00]} 3. d5 {[%emt 0:00:00]} b5 {[%emt 0:00:16]} 4. a4 {[%emt 0:02:36]} Qa5+ {[%emt 0:02:41]} 5. Bd2 {[%emt 0:02:57]} b4 {[%emt 0:00:15]} 6. c4 {[%emt 0:00:28]} g6 {[%emt 0:04:04]} 7. Qc2 {[%emt 0:11:12]} Bg7 {[%emt 0:05:52]} 8. e4 {[%emt 0:02:30]} d6 {[%emt 0:00:14]} 9. Bd3 {[%emt 0:02:11]} Nbd7 {[%emt 0:07:46]} 10. f4 {[%emt 0:04:18]} Qc7 {[%emt 0:22:01]} 11. Nf3 {[%emt 0:02:32]} a5 {[%emt 0:05:28]} 12. O-O {[%emt 0:03:13]} O-O {[%emt 0:01:38]} 13. Ra2 {[%emt 0:09:41]} Bb7 {[%emt 0:03:06]} 14. b3 {[%emt 0:00:52]} e6 {[%emt 0:03:03]} 15. Bc1 {[%emt 0:03:06]} exd5 {[%emt 0:00:50]} 16. cxd5 {[%emt 0:04:18]} Rfe8 {[%emt 0:07:31]} 17. Bb2 {[%emt 0:06:19]} Re7 {[%emt 0:04:34]} 18. Nbd2 {[%emt 0:01:16]} Rae8 {[%emt 0:00:37]} 19. Qb1 {[%emt 0:16:31]} Ng4 {[%emt 0:08:34]} 20. Bxg7 {[%emt 0:01:56]} Kxg7 {[%emt 0:00:17]} 21. Nc4 {[%emt 0:02:47]} Ba6 {[%emt 0:01:29]} 22. Nfd2 {[%emt 0:07:12]} Ngf6 {[%emt 0:04:02]} 23. e5 {[%emt 0:01:45]} Bxc4 {[%emt 0:05:05]} 24. Nxc4 {[%emt 0:00:17]} Qa7 {[%emt 0:02:05]} 25. exf6+ {[%emt 0:00:39]} Nxf6 {[%emt 0:00:04]} 26. Qa1 {[%emt 0:01:36]} Re3 {[%emt 0:00:54]} 27. Nxe3 {[%emt 0:03:16]} Rxe3 {[%emt 0:00:55]} 28. Bc4 {[%emt 0:00:36]} 1-0